bitfinex-derivatives/quotes_SOLF0:USTF0_20251222
["timestamp","ask_amount","ask_price","bid_price","bid_amount"]
[1766436432134,3.3145331,125.13,125.05,3.29]
[1766436432341,3.26,125.13,125.05,97.67]
[1766436432643,2.4530146,125.1,125.03,3.29]
[1766436432939,12.9103146,125.11,125.03,10.4917]
[1766436433135,0.06155806,125.08,125.06,0.05788956]
[1766436433645,5.7130146,125.11,125.06,0.05788956]
[1766436434036,3.26,125.11,125.06,0.05788956]
[1766436434435,0.05228207,125.1,125.06,0.05788956]
[1766436437143,0.05228207,125.1,125.06,3.34788956]
[1766436437337,0.05228207,125.1,125.06,0.05788956]
[1766436441045,3.31228207,125.1,125.06,0.05788956]
[1766436441947,3.31228207,125.1,125.02,10.492]
[1766436442148,3.26,125.1,125.01,94.42]
[1766436442538,3.26,125.07,125.01,94.42]
[1766436442845,0.05917599,125.05,125.03,0.06021266]
[1766436443048,3.31917599,125.05,124.98,7.2044]
[1766436443247,3.26,125.05,124.98,7.2044]
[1766436443957,3.26,125.05,124.97,97.71]
[1766436444142,0.05219903,125.02,125.0,0.05527956]
[1766436450457,0.05219903,125.02,124.97,97.71]
[1766436451252,0.05219903,125.02,124.98,0.05695217]
[1766436452653,7.25479903,125.02,124.98,0.05695217]
[1766436452952,3.26,125.01,124.94,3.45]
[1766436453164,3.26,125.04,124.94,3.45]
[1766436453351,7.2029,125.02,124.94,3.45]
[1766436453957,0.05340249,124.99,124.97,0.06018651]
[1766436456157,0.00340249,124.99,124.97,3.46018651]
[1766436456353,3.26,125.07,124.97,3.46018651]
[1766436456551,3.26,125.07,124.97,3.4]
[1766436456552,3.26,125.06,124.97,3.4]
[1766436457259,3.26,125.04,124.97,3.4]
[1766436457564,0.05766299,125.02,124.99,0.05313624]
[1766436457758,3.31766299,125.02,124.95,3.4]
[1766436457950,3.26,125.02,124.95,3.4]
[1766436458965,0.05514358,125.0,124.97,0.05155896]
[1766436460358,7.2022,125.03,124.97,3.45155896]
[1766436460552,3.26,125.04,124.97,3.45155896]
[1766436460866,10.4615,125.04,124.97,3.45155896]
[1766436461257,3.26,125.04,124.97,3.45155896]
[1766436461457,0.05103771,125.02,124.97,3.45155896]
[1766436463168,3.31103771,125.02,124.97,0.05155896]
[1766436463471,3.31103771,125.02,124.97,0.00155896]
[1766436463661,7.10266836,125.01,124.97,0.00155896]
[1766436463862,10.4637,125.0,124.93,97.86]
[1766436464061,3.26,124.99,124.93,97.86]
[1766436464864,0.05207593,124.97,124.95,0.05905414]
[1766436466666,0.05207593,124.97,124.9,10.6088]
[1766436466866,3.26,124.98,124.9,3.4]
[1766436467070,3.26,124.96,124.9,3.4]
[1766436467368,3.26,124.96,124.89,94.5]
[1766436467671,0.05990783,124.94,124.91,0.05869647]
[1766436469365,10.52700783,124.94,124.87,3.4]
[1766436469568,3.26,124.93,124.87,3.4]
[1766436470372,0.05818256,124.91,124.89,0.05317516]
[1766436470767,0.05818256,124.91,124.85,101.712]
[1766436470768,0.05818256,124.91,124.85,97.9]
[1766436471476,7.16085092,124.91,124.82,3.4]
[1766436471773,0.05867835,124.88,124.85,0.05653702]
[1766436471978,3.26,124.92,124.85,3.45653702]
[1766436473078,0.06116498,124.9,124.85,3.45653702]
[1766436474069,7.27086498,124.9,124.85,3.45653702]
[1766436474785,7.21,124.89,124.85,3.45653702]
[1766436475377,0.06116498,124.9,124.85,3.45653702]
[1766436476174,7.2079,124.93,124.85,3.45653702]
[1766436476373,7.2079,124.93,124.85,3.4]
[1766436476773,115.3747,124.94,124.85,3.4]
[1766436476974,3.26,124.92,124.85,3.4]
[1766436477190,0.06036983,124.9,124.87,0.05224183]
[1766436479085,0.00036983,124.9,124.87,3.45224183]
[1766436480884,0.00036983,124.9,124.87,0.05224183]
[1766436481382,3.26,124.89,124.81,3.4]
[1766436482092,3.26,124.87,124.79,3.4]
[1766436482387,0.05181647,124.84,124.82,0.05123953]
[1766436482582,0.05117139,124.84,124.82,0.05123953]
[1766436483691,10.52407139,124.84,124.77,3.4]
[1766436484082,3.31117139,124.84,124.77,3.4]
[1766436484282,3.26,124.83,124.74,10.6183]
[1766436484686,0.05571647,124.8,124.77,0.06107892]
[1766436484884,0.05571647,124.8,124.77,0.06117254]
[1766436486805,7.27101647,124.8,124.74,3.4]
[1766436486992,3.38,124.79,124.73,94.58]
[1766436487201,3.38,124.79,124.69,3.28]
[1766436487492,3.38,124.79,124.68,112.3385]
[1766436487493,10.5964,124.78,124.7,3.28]
[1766436487788,0.05663617,124.75,124.73,0.05623688]
[1766436488889,10.5955,124.8,124.73,0.05623688]
[1766436489080,105.1955,124.8,124.72,3.28]
[1766436489392,3.38,124.8,124.72,3.28]
[1766436489986,0.05245429,124.77,124.75,0.05154694]
[1766436491193,0.05245429,124.77,124.7,3.28]
[1766436492098,0.05245429,124.77,124.72,0.06045892]
[1766436493095,7.26945429,124.77,124.72,0.06045892]
[1766436493283,0.05245429,124.77,124.72,0.06045892]
[1766436502403,0.05245429,124.77,124.72,3.34045892]
[1766436502591,0.00245429,124.77,124.72,3.34045892]
[1766436502790,0.00245429,124.77,124.73,3.28]
[1766436503003,3.38,124.83,124.74,3.28]
[1766436503204,7.2131,124.84,124.77,10.4967]
[1766436503400,98.04,124.85,124.77,3.28]
[1766436503999,0.06158475,124.82,124.8,0.05099751]
[1766436504605,0.00158475,124.82,124.8,0.05099751]
[1766436506202,0.00158475,124.82,124.8,3.33099751]
[1766436507697,0.00158475,124.82,124.8,0.05099751]
[1766436512010,10.5915,124.87,124.8,3.24099751]
[1766436512912,0.05553201,124.85,124.8,3.24099751]
[1766436515914,0.05553201,124.85,124.8,0.05099751]
[1766436516110,0.05553201,124.85,124.8,3.43099751]
[1766436517626,0.05553201,124.85,124.8,10.64609751]
[1766436518223,10.4905,124.89,124.81,3.38]
[1766436518423,3.28,124.89,124.81,3.38]
[1766436518816,10.49,124.89,124.82,3.38]
[1766436519320,0.05885001,124.87,124.84,0.05097745]
[1766436522521,7.27005001,124.87,124.84,0.05097745]
[1766436522926,3.33885001,124.87,124.79,7.2152]
[1766436523126,10.4911,124.87,124.79,3.38]
[1766436523424,3.28,124.87,124.79,3.38]
[1766436523627,10.4923,124.85,124.79,3.38]
[1766436524026,0.05759617,124.83,124.81,0.06008442]
[1766436525133,0.05759617,124.83,124.77,105.2167]
[1766436525328,7.27099617,124.83,124.77,105.2167]
[1766436525531,10.55099617,124.83,124.77,3.38]
[1766436525833,3.33759617,124.83,124.73,94.62]
[1766436526035,0.06144714,124.8,124.77,0.06070349]
[1766436526928,0.06144714,124.8,124.73,101.8387]
[1766436527131,3.34144714,124.8,124.73,101.8387]
[1766436527332,3.34144714,124.8,124.73,94.62]
[1766436527529,3.34144714,124.8,124.72,3.38]
[1766436527929,7.2158,124.79,124.76,0.05279296]
[1766436528136,7.2158,124.79,124.72,10.5996]
[1766436528332,7.2158,124.79,124.72,3.38]
[1766436529135,10.4958,124.79,124.75,0.06099702]
[1766436530733,0.06144714,124.8,124.75,0.06099702]
[1766436530940,0.00144714,124.8,124.75,3.44099702]
[1766436534044,7.2124,124.85,124.78,3.38]
[1766436535036,0.05390274,124.83,124.8,0.05626205]
[1766436539453,0.00390274,124.83,124.8,3.43626205]
[1766436539639,2.4655652,124.87,124.8,3.43626205]
[1766436539939,101.8704,124.89,124.81,94.64]
[1766436539940,2.4655652,124.89,124.81,94.64]
[1766436540134,2.4655652,124.89,124.82,3.38]
[1766436540540,0.05731834,124.87,124.84,0.05978202]
[1766436540745,2.52288354,124.87,124.84,0.05978202]
[1766436541640,0.05731834,124.87,124.84,0.05978202]
[1766436544345,10.4892,124.91,124.84,3.43978202]
[1766436544534,115.4191,124.91,124.84,0.05978202]
[1766436544735,3.28,124.87,124.79,10.5952]
[1766436544942,3.28,124.86,124.79,10.5952]
[1766436545248,3.28,124.86,124.79,3.38]
[1766436545640,3.24795752,124.84,124.81,0.05143204]
[1766436545839,3.24795752,124.84,124.74,9.90147746]
[1766436546049,3.19,124.83,124.74,9.90147746]
[1766436546843,0.05979487,124.8,124.77,0.05661298]
[1766436548549,7.2133,124.84,124.77,3.25661298]
[1766436548850,3.19,124.86,124.77,3.25661298]
[1766436549052,3.19,124.86,124.77,3.2]
[1766436549652,0.05854169,124.83,124.8,0.05158948]
[1766436554348,3.24854169,124.83,124.77,3.2]
[1766436554753,7.2148,124.81,124.74,13.10147746]
[1766436555345,0.06148838,124.79,124.76,0.05067382]
[1766436558451,3.19,124.83,124.76,3.25067382]
[1766436559653,0.05480873,124.81,124.76,3.25067382]
[1766436560356,3.24480873,124.81,124.76,0.05067382]
[1766436561560,10.45950873,124.81,124.76,0.05067382]
[1766436565959,9.73691159,124.81,124.76,0.05067382]
[1766436566566,12.92691159,124.81,124.76,0.05067382]
[1766436567561,7.2152,124.8,124.76,0.05067382]
[1766436568669,7.2157,124.79,124.76,0.05067382]
[1766436570069,13.01310286,124.79,124.76,0.00067382]
[1766436570665,2.46740286,124.77,124.74,9.90147746]
[1766436570967,2.46740286,124.77,124.69,112.3269]
[1766436570968,2.46740286,124.75,124.69,3.36]
[1766436571371,2.46740286,124.75,124.69,10.5814]
[1766436571566,0.06134233,124.73,124.71,0.05585366]
[1766436575377,0.00134233,124.73,124.71,0.05585366]
[1766436576783,0.00134233,124.73,124.68,7.222]
[1766436577782,0.00134233,124.73,124.69,0.05243785]
[1766436578078,0.00134233,124.73,124.69,3.33243785]
[1766436578681,0.00134233,124.73,124.71,10.5002]
[1766436580178,0.00134233,124.73,124.69,10.55353785]
[1766436580383,0.00134233,124.73,124.69,3.33243785]
[1766436580987,0.00134233,124.73,124.7,7.2208]
[1766436584087,0.00134233,124.73,124.69,3.33243785]
[1766436585286,0.00134233,124.73,124.69,0.05243785]
[1766436585481,0.56134233,124.73,124.69,0.05243785]
[1766436586286,7.78054233,124.73,124.69,0.05243785]
[1766436586888,0.56134233,124.73,124.69,0.05243785]
[1766436589183,7.78064233,124.73,124.69,0.05243785]
[1766436589379,0.56,124.72,124.64,10.5042]
[1766436589581,0.56,124.72,124.64,3.28]
[1766436589785,0.51,124.74,124.64,3.28]
[1766436590488,0.06097161,124.7,124.68,0.0567789]
[1766436590684,0.05798941,124.7,124.68,0.0567789]
[1766436591394,136.3348,124.76,124.68,0.0567789]
[1766436591395,0.57,124.76,124.68,3.3367789]
[1766436591600,0.57,124.79,124.69,3.28]
[1766436592695,0.05837363,124.75,124.73,0.05535559]
[1766436595209,0.57,124.82,124.73,3.33535559]
[1766436595499,0.57,124.82,124.73,3.28]
[1766436595701,0.57,124.82,124.75,7.2178]
[1766436595906,0.57,124.82,124.75,3.28]
[1766436596401,0.57,124.82,124.77,0.05988764]
[1766436596402,0.05482218,124.8,124.77,0.05988764]
[1766436600308,0.05482218,124.8,124.73,3.28]
[1766436600602,0.00482218,124.8,124.73,3.28]
[1766436600802,7.2128,124.84,124.75,3.28]
[1766436601002,0.62,124.83,124.76,3.28]
[1766436601203,112.2181,124.82,124.76,3.28]
[1766436601399,112.8381,124.82,124.75,94.68]
[1766436601808,0.05927084,124.8,124.77,0.0538467]
[1766436602204,7.2158,124.79,124.77,0.0538467]
[1766436602405,7.2158,124.79,124.66,3.28]
[1766436602406,112.8848,124.77,124.66,3.28]
[1766436602601,0.62,124.77,124.66,3.28]
[1766436602806,7.2172,124.77,124.68,3.28]
[1766436603404,0.05462008,124.74,124.71,0.06150582]
[1766436604705,0.05462008,124.74,124.69,3.28]
[1766436604911,0.62,124.74,124.67,3.28]
[1766436605299,0.62,124.73,124.64,3.28]
[1766436605511,112.9211,124.73,124.64,3.28]
[1766436605907,0.05820969,124.7,124.67,0.05821927]
[1766436606211,0.05820969,124.7,124.64,3.28]
[1766436607106,0.05820969,124.7,124.66,0.05076091]
[1766436607616,7.2216,124.69,124.66,0.05076091]
[1766436609024,7.2216,124.69,124.62,4.49161513]
[1766436609025,112.3452,124.68,124.62,4.49161513]
[1766436609213,112.9052,124.68,124.62,4.49161513]
[1766436609410,7.2234,124.66,124.62,1.513e-05]
[1766436609715,0.56,124.65,124.58,3.35]
[1766436609915,0.05276578,124.63,124.6,0.05489967]
[1766436612324,0.05276578,124.63,124.55,7.2293]
[1766436612325,0.61276578,124.63,124.55,3.35]
[1766436612505,0.51,124.62,124.55,3.35]
[1766436612815,95.23,124.62,124.55,3.35]
[1766436613319,0.51,124.62,124.55,3.35]
[1766436613512,0.05494844,124.6,124.57,0.0562135]
[1766436614912,0.00494844,124.6,124.57,0.0562135]
[1766436619525,0.00494844,124.6,124.57,3.4062135]
[1766436622324,11.29449442,124.69,124.57,3.4062135]
[1766436622529,112.9001,124.69,124.57,3.35]
[1766436622728,7.2222,124.68,124.59,10.5771]
[1766436622938,7.2222,124.68,124.6,3.35]
[1766436623234,7.2233,124.66,124.6,3.35]
[1766436623442,0.05428499,124.64,124.62,0.05711752]
[1766436623729,0.05049106,124.64,124.62,0.05711752]
[1766436624632,2.16049106,124.64,124.55,98.13]
[1766436624933,0.51,124.63,124.56,3.35]
[1766436625230,7.2262,124.61,124.56,3.35]
[1766436625431,0.05608126,124.6,124.57,0.05088914]
[1766436626131,207.6548,124.66,124.57,3.40088914]
[1766436626425,95.29,124.66,124.57,3.35]
[1766436627230,0.05454585,124.63,124.6,0.05239067]
[1766436629224,0.05454585,124.63,124.56,3.35]
[1766436629530,112.9332,124.65,124.56,3.35]
[1766436629825,7.2258,124.62,124.56,3.35]
[1766436630333,0.06149377,124.6,124.58,0.05752383]
[1766436634136,0.06149377,124.6,124.53,10.6403]
[1766436634432,0.06149377,124.6,124.54,3.41]
[1766436635132,0.06149377,124.6,124.56,0.02144649]
[1766436639025,0.00149377,124.6,124.56,3.39144649]
[1766436640632,0.00149377,124.6,124.56,10.62034649]
[1766436641433,0.00149377,124.6,124.56,3.39144649]
[1766436648243,2.47457899,124.65,124.57,7.2284]
[1766436648444,3.03,124.69,124.58,3.37]
[1766436648640,2.47457899,124.68,124.6,3.37]
[1766436649044,2.47457899,124.66,124.6,3.37]
[1766436649238,0.05092837,124.64,124.62,0.05199195]
[1766436649634,2.52550736,124.64,124.58,3.37]
[1766436650035,0.05092837,124.64,124.58,3.37]
[1766436650548,0.05092837,124.64,124.6,0.03094831]
[1766436651638,7.2251,124.63,124.6,0.03094831]
[1766436654451,7.2251,124.63,124.56,3.37]
[1766436654452,10.2551,124.63,124.56,3.37]
[1766436655251,3.03,124.63,124.56,3.37]
[1766436655549,0.05574892,124.61,124.56,3.37]
[1766436655751,7.28194892,124.61,124.56,3.37]
[1766436656259,3.05574892,124.61,124.53,3.37]
[1766436656445,0.05290472,124.58,124.53,3.37]
[1766436660951,0.00290472,124.58,124.55,3.37]
[1766436662154,0.00290472,124.58,124.54,0.05]
[1766436662357,3.0,124.55,124.47,3.37]
[1766436663152,9.62695738,124.57,124.47,3.37]
[1766436663357,0.05324737,124.53,124.47,3.37]
[1766436665053,0.05324737,124.53,124.48,3.37]
[1766436667754,3.05324737,124.53,124.45,3.21]
[1766436667960,0.05083093,124.5,124.45,98.03]
[1766436668764,0.05083093,124.5,124.46,3.21]
[1766436670366,2.52980324,124.5,124.44,98.03]
[1766436670960,2.52980324,124.5,124.44,3.21]
[1766436671470,7.2333,124.49,124.44,3.21]
[1766436671767,5.52980324,124.5,124.44,3.21]
[1766436671966,7.2333,124.49,124.44,3.21]
[1766436672166,9.71227231,124.49,124.44,3.21]
[1766436672867,7.2337,124.48,124.42,98.05]
[1766436673072,7.2337,124.48,124.43,3.21]
[1766436673973,0.05758624,124.47,124.44,0.05433987]
[1766436674776,7.29188624,124.47,124.44,0.05433987]
[1766436675170,0.05758624,124.47,124.44,0.05433987]
[1766436675678,119.13409276,124.52,124.44,3.26433987]
[1766436675679,3.12,124.52,124.44,3.26433987]
[1766436675874,3.12,124.52,124.44,3.21]
[1766436676575,0.06087389,124.49,124.47,0.05064325]
[1766436680787,0.06087389,124.49,124.47,0.00064325]
[1766436681570,0.06087389,124.49,124.42,3.21]
[1766436682379,0.06087389,124.49,124.42,10.4471]
[1766436682569,0.06087389,124.49,124.44,0.05898785]
[1766436684475,7.29397389,124.49,124.44,0.05898785]
[1766436685081,0.06087389,124.49,124.44,0.05898785]
[1766436686277,0.06087389,124.49,124.44,3.26898785]
[1766436687585,0.06087389,124.49,124.44,10.50478785]
[1766436687780,0.06087389,124.49,124.45,3.21]
[1766436692786,0.00087389,124.49,124.45,3.21]
[1766436694689,7.23397389,124.49,124.44,0.05898785]
[1766436694877,7.23397389,124.49,124.44,3.25898785]
[1766436697089,3.13,124.48,124.44,0.05898785]
[1766436697290,3.13,124.48,124.41,3.52]
[1766436698394,0.06031507,124.46,124.43,0.05842517]
[1766436702290,10.42541507,124.46,124.43,0.05842517]
[1766436702795,7.29541507,124.46,124.43,0.05842517]
[1766436702991,0.06031507,124.46,124.43,0.05842517]
[1766436703290,3.13,124.5,124.43,3.57842517]
[1766436703690,7.2326,124.5,124.43,3.57842517]
[1766436703891,3.19,124.53,124.45,3.52]
[1766436704082,3.19,124.55,124.45,3.52]
[1766436704283,7.2304,124.54,124.49,3.57409358]
[1766436705391,3.87450066,124.56,124.49,3.57409358]
[1766436705392,0.00232748,124.53,124.49,3.57409358]
[1766436711205,115.78442748,124.53,124.49,0.05409358]
[1766436711406,116.36310066,124.52,124.47,3.52]
[1766436712303,11.10630066,124.52,124.48,0.05488443]
[1766436713203,7.2319,124.51,124.48,0.05488443]
[1766436715105,7.2326,124.5,124.48,0.05488443]
[1766436715306,7.29012067,124.5,124.48,0.05488443]
[1766436717404,0.05752067,124.5,124.48,0.05488443]
[1766436719611,7.29002067,124.5,124.45,3.52]
[1766436719801,10.54002067,124.5,124.43,3.52]
[1766436720514,3.30752067,124.5,124.43,3.52]
[1766436720705,3.30752067,124.5,124.45,0.05809467]
[1766436721613,10.54002067,124.5,124.45,0.05809467]
[1766436721915,3.30752067,124.5,124.45,0.05809467]
[1766436722106,10.54002067,124.5,124.45,0.05809467]
[1766436723002,3.25,124.49,124.45,0.05809467]
[1766436723612,0.05752067,124.5,124.45,0.05809467]
[1766436724707,7.29052067,124.5,124.45,0.05809467]
[1766436726419,0.05752067,124.5,124.45,3.39809467]
[1766436728214,3.25,124.53,124.45,3.39809467]
[1766436728215,3.31,124.56,124.45,3.39809467]
[1766436728411,3.31,124.56,124.46,3.34]
[1766436729021,10.5394,124.56,124.47,3.34]
[1766436729218,0.05106907,124.53,124.5,0.05358341]
[1766436729520,0.00106907,124.53,124.5,3.39358341]
[1766436730207,7.2284,124.58,124.5,3.39358341]
[1766436730512,3.36,124.59,124.5,3.34]
[1766436731328,0.00249573,124.56,124.53,3.39234982]
[1766436733109,7.2272,124.6,124.53,3.39234982]
[1766436734119,0.05872629,124.58,124.53,3.39234982]
[1766436735427,7.2272,124.6,124.53,3.39234982]
[1766436736318,3.47,124.59,124.53,3.39234982]
[1766436736519,0.05559682,124.57,124.53,3.39234982]
[1766436738524,7.28429682,124.57,124.53,0.05234982]
[1766436739330,0.05559682,124.57,124.53,0.05234982]
[1766436741228,10.75409682,124.57,124.51,3.34]
[1766436741433,3.86733779,124.56,124.49,98.2]
[1766436741935,3.47,124.55,124.49,98.2]
[1766436742320,0.0574586,124.53,124.51,0.05270904]
[1766436743032,3.86733779,124.56,124.51,0.05270904]
[1766436744129,0.05328472,124.55,124.51,0.05270904]
[1766436746439,0.00328472,124.55,124.51,3.39270904]
[1766436746646,10.7177,124.59,124.51,3.39270904]
[1766436746823,10.7177,124.59,124.51,3.34]
[1766436747327,10.7177,124.59,124.52,3.34]
[1766436747728,0.05654166,124.57,124.54,0.06115482]
[1766436750331,0.05654166,124.57,124.42,151.4825162]
[1766436750332,7.31733779,124.56,124.48,3.28]
[1766436750722,3.45,124.56,124.48,3.28]
[1766436750925,3.86733779,124.56,124.48,3.28]
[1766436751131,7.229,124.57,124.48,3.28]
[1766436751330,3.86733779,124.56,124.51,0.05355807]
[1766436751632,3.86733779,124.56,124.51,3.33355807]
[1766436752237,0.06125215,124.55,124.51,3.33355807]
[1766436753026,0.06125215,124.55,124.51,0.05355807]
[1766436753427,3.86733779,124.54,124.49,3.28]
[1766436753735,3.86733779,124.54,124.48,3.28]
[1766436754434,0.05505452,124.52,124.5,0.05219708]
[1766436754638,3.45,124.58,124.5,3.33219708]
[1766436754841,7.31733779,124.58,124.5,3.28]
[1766436755630,0.05523928,124.55,124.53,0.06065861]
[1766436756130,0.05523928,124.55,124.5,3.28]
[1766436757231,0.05523928,124.55,124.51,0.05330896]
[1766436759234,7.28493928,124.55,124.51,0.05330896]
[1766436761634,0.05523928,124.55,124.51,0.05330896]
[1766436762135,2.47675779,124.54,124.51,0.05330896]
[1766436765835,5.85675779,124.54,124.51,0.00330896]
[1766436767736,3.38,124.54,124.51,0.00330896]
[1766436770245,9.76159707,124.55,124.51,0.00330896]
[1766436771636,3.38,124.54,124.51,0.00330896]
[1766436773447,3.38,124.54,124.48,3.3]
[1766436773448,10.6104,124.54,124.48,3.3]
[1766436773637,3.38,124.5,124.42,3.3]
[1766436773839,3.38,124.5,124.43,3.3]
[1766436774037,5.85675779,124.49,124.43,3.3]
[1766436774641,0.05427245,124.47,124.45,0.05464907]
[1766436774844,2.47675779,124.51,124.45,3.35464907]
[1766436775036,2.47675779,124.51,124.45,3.3]
[1766436775642,5.85675779,124.51,124.45,3.3]
[1766436775847,0.05679018,124.49,124.47,0.05147817]
[1766436776244,10.6113,124.53,124.47,0.05147817]
[1766436776439,5.85675779,124.55,124.46,3.3]
[1766436776646,10.6087,124.57,124.49,3.3]
[1766436777249,0.05108058,124.54,124.52,0.0558563]
[1766436778451,3.38,124.53,124.46,3.3]
[1766436779460,0.05268659,124.51,124.48,0.05062114]
[1766436788555,2.47675779,124.55,124.48,3.38062114]
[1766436788759,2.47675779,124.55,124.48,3.33]
[1766436789563,2.47675779,124.55,124.5,0.05098721]
[1766436789564,0.05944894,124.53,124.5,0.05098721]
[1766436790263,2.47675779,124.57,124.5,3.38098721]
[1766436790462,5.70675779,124.55,124.5,0.05098721]
[1766436790855,2.47675779,124.53,124.5,0.05098721]
[1766436791558,0.05061758,124.53,124.5,0.05098721]
[1766436794258,0.05061758,124.53,124.5,3.38098721]
[1766436794461,0.00061758,124.53,124.5,3.38098721]
[1766436794657,0.00061758,124.53,124.5,0.05098721]
[1766436804173,0.00061758,124.53,124.5,3.38098721]
[1766436805576,0.00061758,124.53,124.5,0.05098721]
[1766436809382,5.70737537,124.53,124.5,0.00098721]
[1766436809584,5.70675779,124.51,124.42,3.33]
[1766436809789,3.23,124.5,124.43,3.33]
[1766436810489,0.05490059,124.48,124.45,3.46533932]
[1766436810688,0.05848948,124.48,124.45,3.46524886]
[1766436810989,5.67675779,124.52,124.45,3.46524886]
[1766436811388,9.70815779,124.52,124.45,3.46524886]
[1766436811778,0.05817603,124.5,124.45,3.46524886]
[1766436834906,0.05817603,124.5,124.45,10.70044886]
[1766436835106,0.05817603,124.5,124.46,3.2]
[1766436835602,10.7707,124.54,124.47,3.2]
[1766436835906,3.54,124.54,124.47,3.2]
[1766436836608,0.05799487,124.52,124.49,0.05836373]
[1766436836996,3.54,124.51,124.45,3.2]
[1766436837305,3.54,124.51,124.44,10.4355]
[1766436837499,3.54,124.51,124.44,3.2]
[1766436838110,0.05500096,124.49,124.46,0.05364542]
[1766436842105,0.05500096,124.49,124.46,0.00364542]
[1766436842106,3.59500096,124.49,124.46,0.00364542]
[1766436842310,0.05500096,124.49,124.46,0.00364542]
[1766436846424,3.43500096,124.49,124.41,98.31]
[1766436846605,3.38,124.47,124.42,3.43]
[1766436847420,0.05554636,124.46,124.43,0.05765182]
[1766436850322,10.6135,124.49,124.43,3.48765182]
[1766436850621,10.6135,124.49,124.43,3.43]
[1766436851416,0.05900884,124.47,124.45,0.05766538]
[1766436852316,7.2324,124.51,124.45,0.05766538]
[1766436852317,10.6124,124.51,124.45,0.05766538]
[1766436852708,3.38,124.51,124.45,3.48766538]
[1766436853015,3.38,124.51,124.46,3.43]
[1766436853213,0.05518035,124.5,124.46,3.43]
[1766436854010,7.2302,124.54,124.46,10.6648]
[1766436854215,3.38,124.53,124.47,3.43]
[1766436854406,3.38,124.55,124.47,3.43]
[1766436855209,0.05987336,124.52,124.5,0.05138279]
[1766436856324,3.38,124.57,124.5,3.48138279]
[1766436856627,3.38,124.57,124.5,3.43]
[1766436857009,3.38,124.56,124.5,3.43]
[1766436857215,3.38,124.56,124.52,0.0599448]
[1766436857413,0.0587395,124.54,124.52,0.0599448]
[1766436857626,3.4387395,124.54,124.48,3.43]
[1766436858519,3.4387395,124.54,124.5,0.05447099]
[1766436858818,3.4387395,124.54,124.5,0.00447099]
[1766436859324,10.6689395,124.54,124.5,0.00447099]
[1766436860925,3.4387395,124.54,124.5,0.00447099]
[1766436861824,3.38,124.53,124.46,98.33]
[1766436862722,0.0611672,124.51,124.48,0.05751136]
[1766436863428,3.4411672,124.51,124.44,3.43]
[1766436863622,3.38,124.51,124.44,3.43]
[1766436864422,3.38,124.5,124.44,3.43]
[1766436864726,3.43378515,124.49,124.46,0.05109698]
[1766436864923,3.43378515,124.49,124.42,98.31]
[1766436865128,3.38,124.48,124.42,94.88]
[1766436865626,3.38,124.48,124.4,10.6681]
[1766436865828,0.06118785,124.45,124.43,0.05907913]
[1766436866520,3.38,124.44,124.38,94.88]
[1766436867514,0.05827812,124.42,124.4,0.05897151]
[1766436867921,3.38,124.46,124.4,0.05897151]
[1766436868429,10.6149,124.46,124.4,0.05897151]
[1766436868831,3.38,124.45,124.4,0.05897151]
[1766436869028,10.66913764,124.44,124.41,0.00100577]
[1766436869328,10.6162,124.44,124.37,3.43]
[1766436870326,0.05858173,124.42,124.39,0.05800193]
[1766436876243,2.54070419,124.42,124.39,0.05800193]
[1766436878128,5.94070419,124.42,124.35,94.88]
[1766436878333,5.94070419,124.42,124.35,98.41]
[1766436878838,13.17790419,124.42,124.35,98.41]
[1766436879032,13.17790419,124.42,124.32,115.14202246]
[1766436879033,5.88212246,124.4,124.33,3.53]
[1766436879237,0.05444675,124.38,124.35,0.05234713]
[1766436880133,5.93656921,124.38,124.3,8.0771555]
[1766436880332,3.4,124.41,124.33,3.53]
[1766436881134,0.0548281,124.38,124.36,0.05801954]
[1766436882834,3.4,124.37,124.3,8.0771555]
[1766436883941,0.05528081,124.35,124.32,0.0577714]
[1766436888641,0.05528081,124.35,124.32,3.5877714]